Cogmind - Beta 9.1 @@@ ROGUE MODE // 2019.11.03 @ 18:41:45 Player: Cassie Rose Result: Destroyed by G-34 Mercenary with Small Laser Performance ------------- Evolutions (1) 500 Regions Visited (2) 400 Robots Destroyed (49) 245 Value Destroyed (1119) 1119 Prototype IDs (3) 60 Alien Tech Used (0) 0 Bonus (0) 0 TOTAL SCORE: 2324 Bonus ------- None Cogmind --------- Core Integrity 0/400 Matter 269/300 Energy 198/250 System Corruption 0% Temperature Cool (32) Location -9/Materials Parts ------- Power (1) Ion Engine Propulsion (3) Light Treads Aluminum Leg Aluminum Leg Utility (3) Large Storage Unit Large Storage Unit Transport Network Coupler Weapon (2) Improved EM Shotgun Improved Assault Rifle Inventory (16) Improved Flight Unit Improved Flight Unit Heat Sink Weight Redist. System Sensor Array Advanced Terrain Scanner Seismic Analyzer Reclamation Unit EM Shotgun Heavy Assault Rifle Improved Assault Rifle Improved Assault Rifle Improved Assault Rifle Improved Assault Rifle Peak State ------------ Power Light Ion Engine Propulsion Aluminum Leg Aluminum Leg Improved Flight Unit Utility Large Storage Unit Large Storage Unit Transport Network Coupler Weapon Improved EM Shotgun Improved Assault Rifle Inventory Ion Engine Light Treads Improved Flight Unit Heat Sink Weight Redist. System Sensor Array Advanced Terrain Scanner Seismic Analyzer Reclamation Unit EM Shotgun Heavy Assault Rifle Improved Assault Rifle Improved Assault Rifle Improved Assault Rifle Improved Assault Rifle [Rating: 18] Favorites ----------- Power Ion Engine Engine Ion Engine Propulsion Aluminum Leg Treads Light Treads Leg Aluminum Leg Flight Unit Improved Flight Unit Utility Large Storage Unit Storage Large Storage Unit Processor Transport Network Coupler Weapon Assault Rifle Energy Gun EM Pulse Gun Energy Cannon Heavy Particle Cannon Ballistic Gun Assault Rifle Launcher Grenade Launcher Build | -11 -10 -9 ------- Run | Scr Mat Mat Slots Evolved 2 | . . 2 Power . | . . . Propulsion 1 | . . 1 Utility 1 | . . 1 Weapon . | . . . Parts Attached 53 | 7 13 33 Power 10 | 1 2 7 Engine 10 | 1 2 7 Core . | . . . Reactor . | . . . Propulsion 23 | 2 5 16 Treads 2 | . . 2 Leg 20 | 2 5 13 Wheel . | . . . Hover . | . . . Flight 1 | . . 1 Utility 5 | 2 2 1 Device . | . . . Storage 4 | 2 2 . Processor 1 | . . 1 Hackware . | . . . Protection . | . . . Artifact . | . . . Weapon 15 | 2 4 9 Energy Gun 4 | . 1 3 Energy Cannon 4 | . . 4 Ballistic Gun 6 | 2 2 2 Ballistic Cannon . | . . . Launcher 1 | . 1 . Special Weapon . | . . . Impact Weapon . | . . . Slashing Weapon . | . . . Piercing Weapon . | . . . Special Melee Weapon . | . . . Unidentified Prototypes 3 | . . 3 Parts Lost 14 | . 2 12 Power 3 | . 1 2 Propulsion 4 | . . 4 Utility . | . . . Weapon 7 | . 1 6 Highest Loss Streak 3 | . 1 3 Average Slot Usage (%) 95 | . 98 93 Engine 11 | . 13 9 Treads 2 | . . 3 Leg 28 | . 27 28 Storage 24 | . 28 22 Processor 6 | . . 11 Energy Gun 6 | . 6 6 Energy Cannon 3 | . . 6 Ballistic Gun 6 | . 11 3 Launcher 4 | . 10 1 Naked Turns . | . . . Heaviest Build 49 | 17 42 49 Greatest Support 36 | 20 20 36 Greatest Overweight (x) 2 | 2 2 2 Average Overweight (x) 1 | . 1 1 Largest Inventory Capacity 16 | 8 16 16 Average Capacity 14 | 6 11 16 Most Carried 15 | 2 8 15 Average Carried 7 | . 5 8 Final Capacity 16 | 8 16 16 Final Carried 14 | 2 8 14 Class Distribution -------------------- 61% | Mutant 38% | Scavenger-Mutant Dominant Class ---------------- Mutant | -10/Materials Scavenger-Mutant | -9/Materials Resources | -11 -10 -9 ----------- Run | Scr Mat Mat Matter Collected 1012 | 280 238 494 Remotely . | . . . Salvage Created 1600 | 113 439 1048 Parts 105 | 10 30 65 Haulers Intercepted 5 | . 2 3 Recyclers Shooed 1 | . . 1 Parts Field Recycled . | . . . Retrieved Matter . | . . . Parts Self-Destructed . | . . . Prevented . | . . . Kills | -11 -10 -9 ------- Run | Scr Mat Mat Combat Hostiles Destroyed 30 | . 9 21 Guns 12 | . 4 8 Cannons 13 | . . 13 AOE 5 | . 5 . Classes Destroyed 9 | 2 5 2 Worker 3 | . 1 2 Tunneler 2 | 2 . . Hauler 5 | . 2 3 Recycler 2 | 1 . 1 Operator 1 | . 1 . Watcher 6 | . 3 3 Swarmer 6 | . . 6 Grunt 21 | . 9 12 Sentry 3 | . . 3 Best Kill Streak 5 | 3 4 5 Combat Bots Only 3 | . 3 3 Max Kills in Single Turn 2 | 1 2 2 Gunslinging . | . . . Exploded 2 | . 2 . Melee . | . . . Uniques/NPCs Destroyed . | . . . Combat | -11 -10 -9 -------- Run | Scr Mat Mat Damage Taken 2732 | . 579 2153 Core 556 | . 150 406 Absorbed by Shields . | . . . Core Remaining (%) 70 | 100 40 . Volleys Fired 139 | 6 35 98 Largest 2 | 2 2 2 Hottest 150 | 40 70 150 Shots Fired 211 | 12 58 141 Gun 133 | 12 47 74 Cannon 65 | . . 65 Launcher 13 | . 11 2 Special . | . . . Kinetic 79 | 12 37 30 Thermal 74 | . . 74 Explosive 13 | . 11 2 Electromagnetic 45 | . 10 35 Robot Hit Streak 10 | 5 5 10 Robot Miss Streak 3 | 1 3 3 Penetration Max . | . . . Secondary Targets 2 | . . 2 Max Gunslinging Chain 1 | . . 1 Shots Hit Robots 144 | 8 33 103 Core Hits 78 | 4 31 43 Critical Hits 3 | 1 . 2 Critical Kills 1 | . . 1 Critical Parts Destroyed 2 | 1 . 1 Melee Attacks . | . . . Impact . | . . . Slashing . | . . . Piercing . | . . . Sneak Attacks . | . . . Combat Hostiles . | . . . Follow-up Attacks . | . . . Damage Inflicted 3263 | 97 1136 2030 Guns 1340 | 97 434 809 Cannons 1075 | . . 1075 Explosions 835 | . 702 133 Melee . | . . . Ramming 13 | . . 13 Kinetic 698 | 97 327 274 Thermal 1291 | . 130 1161 Explosive 705 | . 572 133 Electromagnetic 556 | . 107 449 Impact . | . . . Slashing . | . . . Piercing . | . . . Highest Corruption . | . . . Average Corruption . | . . . Corruption Purged . | . . . Overload Shots . | . . . Overflow Damage 102 | . 65 37 Projectiles 20 | . . 20 Explosions 82 | . 65 17 Melee . | . . . Knockbacks . | . . . Impact . | . . . Kinetic . | . . . Secondary . | . . . Self-Inflicted Damage 215 | . 156 59 Shots 7 | . 5 2 Rammed . | . . . Targets Rammed 2 | . . 2 Kicked 2 | . . 2 Crushed . | . . . Highest Temperature 488 | . 30 488 Average Temperature 126 | . 8 144 Received Heat Transfer 963 | . 237 726 Effects 7 | . . 7 Shutdowns 2 | . . 2 Energy Bleed 2 | . . 2 Interference 2 | . . 2 Matter Decay 1 | . . 1 Siege Activations . | . . . Robots Corrupted . | . . . Combat Hostiles . | . . . Parts Fried 1 | . . 1 Impact Corruptions . | . . . Robots Melted . | . . . Combat Hostiles . | . . . Parts Melted 3 | . . 3 Heat Transferred 1913 | . 100 1813 Parts Sabotaged . | . . . Parts Stolen . | . . . Parts Stripped . | . . . Power Chain Reactions . | . . . Missiles Intercepted . | . . . Alert | -11 -10 -9 ------- Run | Scr Mat Mat Peak Influence 279 | 15 171 279 Average Influence 110 | 5 97 125 Maximum Alert Level 1 | . . 1 Low Security (%) 87 | . . . Level 1 12 | . . . Level 2 . | . . . Level 3 . | . . . Level 4 . | . . . Level 5 . | . . . High Security . | . . . Max Security . | . . . Squads Dispatched 5 | . 2 3 Investigation 3 | . 1 2 Extermination . | . . . Reinforcement 2 | . 1 1 Assault . | . . . Garrison . | . . . Intercept . | . . . Construction Impeded . | . . . Haulers Reinforced . | . . . Stealth | -11 -10 -9 --------- Run | Scr Mat Mat Distress Signals 2 | . 1 1 Communications Jammed . | . . . Distress Signals . | . . . Times Spotted 52 | . 15 37 Peak Tracking Total 5 | . 3 5 Tactical Retreats 4 | . . 4 Traps | -11 -10 -9 ------- Run | Scr Mat Mat Traps Triggered 2 | . 2 . Indirectly . | . . . Trap Hack Attempts . | . . . Triggered . | . . . Disarmed . | . . . Reprogrammed . | . . . Reused . | . . . Traps Extracted . | . . . Installed . | . . . Triggered . | . . . Machines | -11 -10 -9 ---------- Run | Scr Mat Mat Machines Disabled 2 | . 2 . Max in Single Turn 2 | . 2 . Machines Sabotaged . | . . . Garrisons Compromised . | . . . Overloaded Fab Kills . | . . . Fab Network Shutdowns . | . . . Hacking | -11 -10 -9 --------- Run | Scr Mat Mat Machines Accessed 7 | . 3 4 Terminals 6 | . 2 4 Fabricators . | . . . Repair Stations . | . . . Recycling Units 1 | . 1 . Scanalyzers . | . . . Garrison Access . | . . . Total Hacks 22 | . 9 13 Successful 14 | . 7 7 Failed 8 | . 2 6 Catastrophic . | . . . Database Lockouts . | . . . Manual 16 | . 6 10 Terminals 21 | . 8 13 Fabricators . | . . . Repair Stations . | . . . Recycling Units 1 | . 1 . Scanalyzers . | . . . Garrison Access . | . . . Terminal Hacks 7 | . 3 4 Level Access Points 1 | . . 1 Branch Access Points 1 | . . 1 Locate Traps 1 | . 1 . Recall Reinforcements 1 | . 1 . Zone Layout 3 | . 1 2 Fabricator Hacks . | . . . Repair Station Hacks . | . . . Recycling Unit Hacks 1 | . 1 . Report Inventory 1 | . 1 . Scanalyzer . | . . . Garrison Access Hacks . | . . . Unauthorized Hacks 17 | . 8 9 Terminals 6 | . 3 3 Track 4 | . 2 2 Assimilate 1 | . 1 . Operators 1 | . . 1 Fabricators . | . . . Repair Stations . | . . . Recycling Units . | . . . Scanalyzers . | . . . Garrison Access . | . . . Data Cores Recovered 1 | . 1 . Used 1 | . 1 . Hacking Detections 5 | . 2 3 Full Trace Events 4 | . 2 2 Feedback Events . | . . . Feedback Blocked . | . . . Robot Schematics Acquired . | . . . Robots Built . | . . . Matter . | . . . Time . | . . . Total Robot Build Rating . | . . . Part Schematics Acquired . | . . . Parts Built . | . . . Matter . | . . . Time . | . . . Total Part Build Rating . | . . . Parts Repaired . | . . . Time . | . . . Parts Recycled . | . . . Recycled Matter . | . . . Retrieved Matter . | . . . Retrieved Components . | . . . Parts Scanalyzed . | . . . Part Schematics Acquired . | . . . Parts Damaged . | . . . Bothacking | -11 -10 -9 ------------ Run | Scr Mat Mat Used RIF Installer . | . . . Robots Hacked . | . . . Non-combat . | . . . Combat . | . . . Robot Hacks Applied . | . . . Relay Couplers Released . | . . . Robots Rewired . | . . . Allies Hacked . | . . . Hacks Repelled . | . . . Allies | -11 -10 -9 -------- Run | Scr Mat Mat Total Allies . | . . . Largest Group . | . . . Highest-Rated Group . | . . . Highest-Rated Ally . | . . . Total Orders . | . . . Ally Attacks . | . . . Total Damage . | . . . Kills . | . . . Allies Corrupted . | . . . Allies Melted . | . . . Intel | -11 -10 -9 ------- Run | Scr Mat Mat Robot Analysis Total . | . . . Derelict Logs Recovered . | . . . Drone Launches . | . . . Drone Recoveries . | . . . Exploration | -11 -10 -9 ------------- Run | Scr Mat Mat Turns Passed 2220 | 76 833 1311 Spaces Moved 990 | 37 376 577 Core 14 | 10 4 . Treads . | . . . Legs 976 | 27 372 577 Wheels . | . . . Hover . | . . . Flight . | . . . Fastest Speed 50 | 50 120 120 Average Speed 152 | 115 150 155 Slowest Speed 180 | 150 180 180 Overloaded Moves . | . . . Propulsion Burnouts . | . . . Robots Hopped . | . . . Cave-ins Triggered . | . . . Exploration Rate (%) 35 | 3 58 46 Regions Visited 2 Branch Regions . Pre-discovered Areas . | . . . Known Exits Taken . | . . . Unknown Exits Taken 2 | 1 1 . Scrap Searched . | . . . Spaces Dug . | . . . Terrain Destroyed 89 | . 58 31 Melee . | . . . Projectile 16 | . . 16 AOE 73 | . 58 15 Actions | -11 -10 -9 --------- Run | Scr Mat Mat Total 1490 | 58 584 848 Wait 218 | . 138 80 Move 988 | 36 375 577 Hop . | . . . Pick Up 66 | 9 18 39 Fast Attach . | . . . Attach 28 | 7 7 14 Detach . | . . . Swap 25 | . 6 19 Drop 24 | . 5 19 Fire 139 | 6 35 98 Melee . | . . . Ram . | . . . Kick 2 | . . 2 Crush . | . . . Escape Stasis . | . . . Rewire . | . . . Trap . | . . . Miscellaneous . | . . . Route ------- -11/Scrapyard -10/Materials (discovered 3 exits: *Mat x2 / [*Min]) -9/Materials (discovered 4 exits: *Mat x3 / Min) History --------- Turn | Location | Event 26 | -11/Scrapyard | Discovered new exit (range 14) 77 | -11/Scrapyard | Entered Materials 313 | -10/Materials | Build established: Mutant 472 | -10/Materials | Discovered new exit (range 16) 502 | -10/Materials | Discovered new exit (range 15) 503 | -10/Materials | Core integrity fell below 50% 552 | -10/Materials | Discovered new exit (range 3) 910 | -10/Materials | Entered another Materials area 910 | -9/Materials | Evolved 2 slots: Propulsion x1, Utility x1 1046 | -9/Materials | Identified exit to Mines 1046 | -9/Materials | Identified exit to Materials 1429 | -9/Materials | Build established: Scavenger-Mutant 1588 | -9/Materials | Core integrity fell below 50% 1689 | -9/Materials | Lost 3 parts (1p2w) 2187 | -9/Materials | Core integrity fell below 20% 2221 | -9/Materials | Destroyed by G-34 Mercenary with Small Laser Last Messages --------------- 02078_ Acquired Prototype Energy Gun. 02081_ Acquired Prototype Flight Unit. 02082_ Identified Imp. EM Shotgun. 02083_ Identified Imp. Flight Unit. 02121_ R-06 Scavenger collects Transport Network Coupler. 02125_ R-06 Scavenger collects Lgt. Treads. 02129_ R-06 Scavenger collects Med. Storage Unit. 02171_ ALERT: Hostiles spotted, dispatching reinforcements to Terminal M006. 02189_ Lgt. Ion Engine destroyed. 02195_ Y-45 Defender misfires. 02202_ Destroyed Beam Rifle. 02202_ Imp. Ion Engine fried. 02202_ Y-45 Defender destroyed. 02202_ K-01 Serf collects debris. 02205_ Acquired 60 matter. 02207_ K-01 Serf collects debris. 02217_ G-34 Mercenary destroyed. 02217_ Switching to secondary target: G-34 Mercenary. 02217_ K-01 Serf destroyed. Map ----- +----------------------------------------------------+ | | | | | | | | | ????????????????????????????????????????????? | | ????????????????????????????????????????????? | | ????????????????????????????????????????????? | | ????????????????????????????????????????????? | | ????????????????????????????????????????????? | | ????????????????????????????????????????????? | | ????????????????????????????????????????????? | | ????????????????????????????????????????????? | | ????????????????????????????????????????????? | | ??????????????????????????????????>?????????? | | ????????????????????????????????????????????? | | ????????????????????????????????????????????? | | ????????????????????????????????????????????? | | ????????????????????????????????????????????? | | ?????????????????????????????????o??????????? | | ????????????????????????????????????????????? | | ????????????????????????????????????#???????? | | ?????????????????????????????????? ##??????? | | ?????????????????????###+####### #??????? | | ?????????????????????# #??????? | | ???????##########????# = + "????? | | ???????# #????# =@[ #??????? | | ???????# #????# g!####### #??????? | | ###????# ###### =# #????????????? | | #????# # * + #????????????? | | #????# + [ *% # #????????????? | | " #????# # ! ==% # #????????????? | | " #????# #+#+#### #""" #????????????? | | " #????# # ???# #""" #????????????? | | #????# ! # ????# #""" #????????????? | | ######?########## ""???# #""" #????????????? | | #??????????# ""???# #""" #????????????? | | #??????????# """??# # #????????????? | | #??????????# ??# # #????????????? | | #???????########### #######????????????? | | ""#???????# # #?###########??????? | | Y"#???????# # #?# #??????? | | ""#???????# # ### #??????? | | #???????# """ """ # # #??????? | | ######???????# """ """ # # #??????? | | ?????????????# """ """ # # """ """ #??????? | | ?????????????# + + """ """ #??????? | | ????###??????# # # """ """ #??????? | | #####T################## # #??????? | | ####+######??????? | | #?????????? | +----------------------------------------------------+ Best States ------------- Heat Dissipation 28 Energy Generation 10 Energy Capacity 250 Matter Stores 300 Matter Capacity 300 Sight Range 16 Terrain Scan Density 10 Evasion (%) 40 Item Schematics ----------------- None Robot Schematics ------------------ None Fabricated ------------ Nothing Alien Tech Used ----------------- None Achievements -------------- Dynamic Key Challenges ------------ None Game ------ Seed NetworkArchitectTerrabomb Manual? 0 Play Time 00:46:14 Cumulative 11.1 hours Start 2019.11.03 @ 16:38:37 End 2019.11.03 @ 18:41:45 Sessions 1 Manual Loads 0 Difficulty Rogue Special Mode None Game No. 17 Rogue 17 Adventurer 0 Explorer 0 Win Type - Total 0 Types 0/0/0/0/0/0/0 Lore% 17 Gallery% 12 Achievement% 15 Wizard Run 0 Options --------- ASCII 0 Keyboard 0 Movement Mouse Keybinds 0 Fullscreen 1 Font 18/X11 Map View 76x50 Tactical HUD 1 Map Filters NONE Filters LOW_CONTRAST(13,24,33) Steam 1 RUN: 2f0c4895-c6f6-47bf-b36f-98a8a6adacc5